Workbook

Sheet Hoja1 (hidden)
D1: 1966-12-04 | G1: 1989-01-10
D2: 1964-07-04 | G2: 1992-10-13
D3: 1963-08-28 | G3: 1986-12-12
D4: 1970-09-20 | G4: 1993-01-01
D5: 1967-02-07 | G5: 1989-01-09
A7: CALCUL DE JUBILACIÓ ANTICIPADA | K7: =IF(AND(IF(A18<1,1,0),IF(B18<1,1,0),IF(C18<1,1,0)),0,1) -> 1 | L7: cotitzat als 65
A8: DATA DE NAIXEMENT | D8: DATA ANTIGUITAT GUB | G8: TEMPS COTITZAT FORA DE GUB | K8: =IF(AND(IF(D18<1,1,0),IF(E18<1,1,0),IF(F18<1,1,0)),0,1) -> 1 | L8: cotitzat a la edat maxima
A9: 1966-12-04 | D9: 2004-01-10 | G9: 0 | H9: 0 | I9: 0 | K9: =IF(AND(IF(G18<1,1,0),IF(H18<1,1,0),IF(I18<1,1,0)),0,1) -> 0 | L9: 100 % SENCERA
K10: =IF(AND(IF(K7<1,1,0),IF(K8<1,1,0)),0,1) -> 1 | L10: falta per cotitzar
A11: JUBILACIÓ ORDINARIA | K11: =IF(D16<G16,0,1) -> 0 | L11: edat maxima o 100%
A12: ALS 65 ANYS | D12: EDAT MAXIMA o 67 ANYS | G12: 100 % SENCERA
A13: =Hoja3!H2 -> 65 | B13: =Hoja3!I2 -> 0 | C13: =Hoja3!J2 -> 0 | D13: =Hoja3!H4 -> 67 | E13: =Hoja3!I4 -> 0 | F13: =Hoja3!J4 -> 0 | G13: =Hoja3!H7 -> 75 | H13: =Hoja3!I7 -> 7 | I13: =Hoja3!J7 -> 6 | K13: =A13&" anys, "&B13&" mesos, "&C13&" dies" -> 65 anys, 0 mesos, 0 dies | L13: =D13&" anys, "&E13&" mesos, "&F13&" dies" -> 67 anys, 0 mesos, 0 dies | M13: =G13&" anys, "&H13&" mesos, "&I13&" dies" -> 75 anys, 7 mesos, 6 dies
A14: =Hoja3!D5 -> 38 | B14: =Hoja3!E5 -> 6 | C14: =Hoja3!F5 -> 0 | D14: =Hoja3!D9 -> 38 | E14: =Hoja3!E9 -> 6 | F14: =Hoja3!F9 -> 0 | G14: =Hoja3!D7 -> 38 | H14: =Hoja3!E7 -> 6 | I14: =Hoja3!F7 -> 0
A15: =Hoja3!K2 -> 27 | B15: =Hoja3!L2 -> 10 | C15: =Hoja3!M2 -> 24 | D15: =Hoja3!K4 -> 29 | E15: =Hoja3!L4 -> 10 | F15: =Hoja3!M4 -> 24 | G15: =Hoja3!K7 -> 38 | H15: =Hoja3!L7 -> 6 | I15: =Hoja3!M7 -> 0 | K15: =A15&" anys, "&B15&" mesos, "&C15&" dies" -> 27 anys, 10 mesos, 24 dies | L15: =D15&" anys, "&E15&" mesos, "&F15&" dies" -> 29 anys, 10 mesos, 24 dies | M15: =G15&" anys, "&H15&" mesos, "&I15&" dies" -> 38 anys, 6 mesos, 0 dies
A16: =Hoja3!$G$2 -> 2031-12-04 | D16: =Hoja3!$G$4 -> 2033-12-04 | G16: =Hoja3!$G$7 -> 2042-07-10
A17: FALTA PER COTITZAR | D17: FALTA PER COTITZAR | G17: FALTA PER COTITZAR
A18: =Hoja3!N6 -> 10 | B18: =Hoja3!O6 -> 7 | C18: =Hoja3!P6 -> 6 | D18: =Hoja3!N8 -> 8 | E18: =Hoja3!O8 -> 7 | F18: =Hoja3!P8 -> 6 | G18: =Hoja3!N5 -> 0 | H18: =Hoja3!O5 -> 0 | I18: =Hoja3!P5 -> 0 | J18: =IF(AND(IF(K7=0,1,0),IF(K8=0,1,0)),0,1) -> 1 | K18: =A18&" anys, "&B18&" mesos, "&C18&" dies" -> 10 anys, 7 mesos, 6 dies | L18: =D18&" anys, "&E18&" mesos, "&F18&" dies" -> 8 anys, 7 mesos, 6 dies | M18: =G18&" anys, "&H18&" mesos, "&I18&" dies" -> 0 anys, 0 mesos, 0 dies
A19: COTITZAT EFECTIU GUB | D19: COTITZAT EFECTIU GUB | G19: COTITZAT EFECTIU GUB
A20: =Hoja3!K21 -> 23 | B20: =Hoja3!L21 -> 3 | C20: =Hoja3!M21 -> 18 | D20: =Hoja3!K19 -> 25 | E20: =Hoja3!L19 -> 1 | F20: =Hoja3!M19 -> 4 | G20: =Hoja3!K20 -> 33 | H20: =Hoja3!L20 -> 6 | I20: =Hoja3!M20 -> 0 | K20: =A20&" anys, "&B20&" mesos, "&C20&" dies" -> 23 anys, 3 mesos, 18 dies | L20: =D20&" anys, "&E20&" mesos, "&F20&" dies" -> 25 anys, 1 mesos, 4 dies | M20: =G20&" anys, "&H20&" mesos, "&I20&" dies" -> 33 anys, 6 mesos, 0 dies
A21: JUBILACIÓ ANTICIPADA VOLUNTÀRIA
A22: =Hoja3!E21 -> 60 | B22: =Hoja3!F21 -> 4 | C22: =Hoja3!G21 -> 24 | D22: =Hoja3!E19 -> 62 | E22: =Hoja3!F19 -> 2 | F22: =Hoja3!G19 -> 10 | G22: =Hoja3!E20 -> 70 | H22: =Hoja3!F20 -> 7 | I22: =Hoja3!G20 -> 6 | K22: =A22&" anys, "&B22&" mesos, "&C22&" dies" -> 60 anys, 4 mesos, 24 dies | L22: =D22&" anys, "&E22&" mesos, "&F22&" dies" -> 62 anys, 2 mesos, 10 dies | M22: =G22&" anys, "&H22&" mesos, "&I22&" dies" -> 70 anys, 7 mesos, 6 dies
A23: =Hoja3!N21 -> 4 | B23: =Hoja3!O21 -> 7 | C23: =Hoja3!P21 -> 6 | D23: =Hoja3!N19 -> 4 | E23: =Hoja3!O19 -> 9 | F23: =Hoja3!P19 -> 20 | G23: =Hoja3!N20 -> 5 | H23: =Hoja3!O20 -> 0 | I23: =Hoja3!P20 -> 0 | J23: AMB 100% COTITZACIÓ | K23: =A23&" anys, "&B23&" mesos, "&C23&" dies" -> 4 anys, 7 mesos, 6 dies | L23: =D23&" anys, "&E23&" mesos, "&F23&" dies" -> 4 anys, 9 mesos, 20 dies | M23: =G23&" anys, "&H23&" mesos, "&I23&" dies" -> 5 anys, 0 mesos, 0 dies
A24: =Hoja3!$C$21 -> 2027-04-28 | D24: =Hoja3!$C$19 -> 2029-02-14 | G24: =Hoja3!$C$20 -> 2037-07-10
A26: JUBILACIÓ ORDINARIA
A27: ALS 65 ANYS | D27: ALS 67 ANYS
A28: =Hoja3!H11 -> 70 | B28: =Hoja3!I11 -> 0 | C28: =Hoja3!J11 -> 0 | D28: =Hoja3!H12 -> 72 | E28: =Hoja3!I12 -> 0 | F28: =Hoja3!J12 -> 0 | K28: =A28&" anys, "&B28&" mesos, "&C28&" dies" -> 70 anys, 0 mesos, 0 dies | L28: =D28&" anys, "&E28&" mesos, "&F28&" dies" -> 72 anys, 0 mesos, 0 dies
A30: =Hoja3!K11 -> 32 | B30: =Hoja3!L11 -> 10 | C30: =Hoja3!M11 -> 24 | D30: =Hoja3!K12 -> 34 | E30: =Hoja3!L12 -> 10 | F30: =Hoja3!M12 -> 24 | K30: =A30&" anys, "&B30&" mesos, "&C30&" dies" -> 32 anys, 10 mesos, 24 dies | L30: =D30&" anys, "&E30&" mesos, "&F30&" dies" -> 34 anys, 10 mesos, 24 dies
A31: =Hoja3!$A$23 -> 2036-12-04 | D31: =Hoja3!$A$24 -> 2038-12-04
A32: FALTA PER COTITZAR | D32: FALTA PER COTITZAR
A33: =Hoja3!N13 -> 5 | B33: =Hoja3!O13 -> 7 | C33: =Hoja3!P13 -> 6 | D33: =Hoja3!N14 -> 3 | E33: =Hoja3!O14 -> 7 | F33: =Hoja3!P14 -> 6 | J33: =IF(AND(IF(A33=0,1,0),IF(B33=0,1,0),IF(C33=0,1,0)),0,1) -> 1 | K33: =A33&" anys, "&B33&" mesos, "&C33&" dies" -> 5 anys, 7 mesos, 6 dies | L33: =D33&" anys, "&E33&" mesos, "&F33&" dies" -> 3 anys, 7 mesos, 6 dies
A34: COTITZAT EFECTIU GUB | D34: COTITZAT EFECTIU GUB
A35: =Hoja3!K23 -> 27 | B35: =Hoja3!L23 -> 10 | C35: =Hoja3!M23 -> 24 | D35: =Hoja3!K24 -> 29 | E35: =Hoja3!L24 -> 10 | F35: =Hoja3!M24 -> 24 | K35: =A35&" anys, "&B35&" mesos, "&C35&" dies" -> 27 anys, 10 mesos, 24 dies | L35: =D35&" anys, "&E35&" mesos, "&F35&" dies" -> 29 anys, 10 mesos, 24 dies
A36: JUBILACIÓ ANTICIPADA VOLUNTÀRIA
A37: =Hoja3!E23 -> 65 | B37: =Hoja3!F23 -> 0 | C37: =Hoja3!G23 -> 0 | D37: =Hoja3!E24 -> 67 | E37: =Hoja3!F24 -> 0 | F37: =Hoja3!G24 -> 0 | K37: =A37&" anys, "&B37&" mesos, "&C37&" dies" -> 65 anys, 0 mesos, 0 dies | L37: =D37&" anys, "&E37&" mesos, "&F37&" dies" -> 67 anys, 0 mesos, 0 dies
A38: =Hoja3!N23 -> 5 | B38: =Hoja3!O23 -> 0 | C38: =Hoja3!P23 -> 0 | D38: =Hoja3!N24 -> 5 | E38: =Hoja3!O24 -> 0 | F38: =Hoja3!P24 -> 0 | J38: AMB 100% COTITZACIÓ | K38: =A38&" anys, "&B38&" mesos, "&C38&" dies" -> 5 anys, 0 mesos, 0 dies | L38: =D38&" anys, "&E38&" mesos, "&F38&" dies" -> 5 anys, 0 mesos, 0 dies
A39: =Hoja3!$C$23 -> 2031-12-04 | D39: =Hoja3!$C$24 -> 2033-12-04

Sheet Hoja4
A1: cerrar Excel

Sheet Hoja2 (hidden)
A1: EDAT DE JUBILACIÓ GENERAL | C1: ANY | D1: AMB AQUESTS TEMPS COTITZAT | H1: EDAT DE JUBILACIÓ GENERAL | K1: ANY | L1: AMB AQUESTS TEMPS COTITZAT | N1: 65 ANYS | Q1: ANTIGUITAT GUB | S1: JUBILACIÓ 65 | U1: JUBILACIÓ 67 | W1: JUBILACIÓ 100% | Z1: 26 | AA1: 1 | AB1: =DATE(YEAR($S$12),MONTH($S$12),DAY($S$12))-30.4*AA1 -> 2026-11-03T14:24:00 | AC1: 31 | AD1: =DATE(YEAR($U$12),MONTH($U$12),DAY($U$12)-30.4*AA1) -> 2028-11-03 | AE1: 31 | AF1: =DATE(YEAR($W$12),MONTH($W$12),DAY($W$12)-30.4*AA1) -> 2037-06-09
A2: 65 | B2: 5 | C2: 2017 | D2: 36 | E2: 3 | G2: =DATE(H2,I2,J2) -> 2032-05-04 | H2: =$I$15+A2 -> 2031 | I2: =$J$15+B2 -> 17 | J2: =$K$15 -> 4 | K2: 2017 | L2: 36 | M2: 3 | N2: =DATE(YEAR($E$15)+65,MONTH($E$15),DAY($E$15)) -> 2031-12-04 | O2: =DATE(YEAR(N2)-L2,MONTH(N2)-M2,DAY(N2)) -> 1995-09-04 | Q2: 15 | S2: =DATE(YEAR($E$20)-3,MONTH($E$20),DAY($E$20)) -> 2028-12-04 | T2: 18 | U2: =DATE(YEAR($E$33)-3,MONTH($E$33),DAY($E$33)) -> 2030-12-04 | W2: =DATE(YEAR($E$42)-3,MONTH($E$42),DAY($E$42)) -> 2039-07-10 | Z2: 27 | AA2: 2 | AB2: =DATE(YEAR($S$12),MONTH($S$12),DAY($S$12))-30.4*AA2 -> 2026-10-04T04:48:00 | AC2: 32 | AD2: =DATE(YEAR($U$12),MONTH($U$12),DAY($U$12)-30.4*AA2) -> 2028-10-04 | AE2: 32 | AF2: =DATE(YEAR($W$12),MONTH($W$12),DAY($W$12)-30.4*AA2) -> 2037-05-10
A3: 65 | B3: 6 | C3: 2018 | D3: 36 | E3: 6 | G3: =DATE(H3,I3,J3) -> 2032-06-04 | H3: 2031 | I3: =$J$15+B3 -> 18 | J3: 4 | K3: 2018 | L3: 36 | M3: 6 | N3: 2031-12-04 | O3: =DATE(YEAR(N3)-L3,MONTH(N3)-M3,DAY(N3)) -> 1995-06-04 | Q3: 16 | S3: =DATE(YEAR($E$20),MONTH($E$20),DAY($E$20)-73.05*Q3) -> 2028-09-21 | T3: 19.2 | U3: =DATE(YEAR($E$33),MONTH($E$33),DAY($E$33)-73.05*Q3) -> 2030-09-22 | W3: =DATE(YEAR($E$42),MONTH($E$42),DAY($E$42)-73.05*Q3) -> 2039-04-28 | Z3: 28 | AA3: 3 | AB3: 2026-09-03T19:12:00 | AC3: 33 | AD3: 2028-09-03 | AE3: 33 | AF3: 2037-04-09
A4: 65 | B4: 8 | C4: 2019 | D4: 36 | E4: 9 | G4: 2032-08-04 | H4: 2031 | I4: 20 | J4: 4 | K4: 2019 | L4: 36 | M4: 9 | N4: 2031-12-04 | O4: 1995-03-04 | Q4: 17 | S4: 2028-07-10 | T4: 20.4 | U4: =DATE(YEAR($E$33),MONTH($E$33),DAY($E$33)-73.05*Q4) -> 2030-07-11 | V4: 22 | W4: =DATE(YEAR($E$42),MONTH($E$42),DAY($E$42)-73.05*Q4) -> 2039-02-14 | Z4: 29 | AA4: 4 | AB4: 2026-08-04T09:36:00 | AC4: 34 | AD4: 2028-08-04 | AE4: 34 | AF4: 2037-03-10
A5: 65 | B5: 10 | C5: 2020 | D5: 37 | E5: 0 | G5: 2032-10-04 | H5: 2031 | I5: 22 | J5: 4 | K5: 2020 | L5: 37 | M5: 0 | N5: 2031-12-04 | O5: 1994-12-04 | Q5: 18 | S5: 2028-04-28 | T5: 21.6 | U5: =DATE(YEAR($E$33),MONTH($E$33),DAY($E$33)-73.05*Q5) -> 2030-04-29 | V5: 23 | W5: =DATE(YEAR($E$42),MONTH($E$42),DAY($E$42)-73.05*Q5) -> 2038-12-03 | Z5: 30 | AA5: 5 | AB5: 2026-07-05 | AC5: 35 | AD5: 2028-07-05 | AE5: 35 | AF5: 2037-02-08
A6: 66 | B6: 0 | C6: 2021 | D6: 37 | E6: 3 | G6: 2032-12-04 | H6: 2032 | I6: 12 | J6: 4 | K6: 2021 | L6: 37 | M6: 3 | N6: 2031-12-04 | O6: 1994-09-04 | Q6: 19 | S6: 2028-02-15 | T6: 22.8 | U6: =DATE(YEAR($E$33),MONTH($E$33),DAY($E$33)-73.05*Q6) -> 2030-02-15 | V6: 24 | W6: =DATE(YEAR($E$42),MONTH($E$42),DAY($E$42)-73.05*Q6) -> 2038-09-21 | Z6: 31 | AA6: 6 | AB6: 2026-06-04T14:24:00 | AC6: 36 | AD6: 2028-06-04 | AE6: 36 | AF6: 2037-01-08
A7: 66 | B7: 2 | C7: 2022 | D7: 37 | E7: 6 | G7: 2033-02-04 | H7: 2032 | I7: 14 | J7: 4 | K7: 2022 | L7: 37 | M7: 6 | N7: 2031-12-04 | O7: 1994-06-04 | Q7: 20 | S7: =DATE(YEAR($E$20)-4,MONTH($E$20),DAY($E$20)) -> 2027-12-04 | T7: 24 | U7: =DATE(YEAR($E$33)-4,MONTH($E$33),DAY($E$33)) -> 2029-12-04 | V7: 25 | W7: =DATE(YEAR($E$42)-4,MONTH($E$42),DAY($E$42)) -> 2038-07-10 | Z7: 32 | AA7: 7 | AB7: 2026-05-05T04:48:00 | AC7: 37 | AD7: 2028-05-05 | AE7: 37 | AF7: 2036-12-09
A8: 66 | B8: 4 | C8: 2023 | D8: 37 | E8: 9 | G8: 2033-04-04 | H8: 2032 | I8: 16 | J8: 4 | K8: 2023 | L8: 37 | M8: 9 | N8: 2031-12-04 | O8: 1994-03-04 | Q8: 21 | S8: 2027-09-21 | T8: 25.2 | U8: =DATE(YEAR($E$33),MONTH($E$33),DAY($E$33)-73.05*Q8) -> 2029-09-21 | V8: 26 | W8: =DATE(YEAR($E$42),MONTH($E$42),DAY($E$42)-73.05*Q8) -> 2038-04-27 | Z8: 33 | AA8: 8 | AB8: 2026-04-04T19:12:00 | AC8: 38 | AD8: 2028-04-04 | AE8: 38 | AF8: 2036-11-08
A9: 66 | B9: 6 | C9: 2024 | D9: 38 | E9: 0 | G9: 2033-06-04 | H9: 2032 | I9: 18 | J9: 4 | K9: 2024 | L9: 38 | M9: 0 | N9: 2031-12-04 | O9: 1993-12-04 | Q9: 22 | S9: 2027-07-10 | T9: 26.4 | U9: =DATE(YEAR($E$33),MONTH($E$33),DAY($E$33)-73.05*Q9) -> 2029-07-10 | V9: 27 | W9: =DATE(YEAR($E$42),MONTH($E$42),DAY($E$42)-73.05*Q9) -> 2038-02-13 | Z9: 34 | AA9: 9 | AB9: 2026-03-05T09:36:00 | AC9: 39 | AD9: 2028-03-05 | AE9: 39 | AF9: 2036-10-09
A10: 66 | B10: 8 | C10: 2025 | D10: 38 | E10: 3 | G10: 2033-08-04 | H10: 2032 | I10: 20 | J10: 4 | K10: 2025 | L10: 38 | M10: 3 | N10: 2031-12-04 | O10: 1993-09-04 | Q10: 23 | S10: 2027-04-28 | T10: 27.6 | U10: =DATE(YEAR($E$33),MONTH($E$33),DAY($E$33)-73.05*Q10) -> 2029-04-28 | V10: 28 | W10: =DATE(YEAR($E$42),MONTH($E$42),DAY($E$42)-73.05*Q10) -> 2037-12-02 | Z10: 35 | AA10: 10 | AB10: 2026-02-03 | AC10: 40 | AD10: 2028-02-04 | AE10: 40 | AF10: 2036-09-09
A11: 66 | B11: 10 | C11: 2026 | D11: 38 | E11: 3 | G11: 2033-10-04 | H11: 2032 | I11: 22 | J11: 4 | K11: 2026 | L11: 38 | M11: 3 | N11: 2031-12-04 | O11: 1993-09-04 | Q11: 24 | S11: 2027-02-14 | T11: 28.4 | U11: =DATE(YEAR($E$33),MONTH($E$33),DAY($E$33)-73.05*Q11) -> 2029-02-14 | V11: 29 | W11: =DATE(YEAR($E$42),MONTH($E$42),DAY($E$42)-73.05*Q11) -> 2037-09-20 | Z11: 36 | AA11: 11 | AB11: 2026-01-03T14:24:00 | AC11: 41 | AD11: 2028-01-04 | AE11: 41 | AF11: 2036-08-09
A12: 67 | B12: 0 | C12: =IF(GESTEP(YEAR(E31),2027),2027,"IGUAL O MAYOR 2027") -> 2027 | D12: 38 | E12: 6 | G12: 2033-12-04 | H12: 2033 | I12: 12 | J12: 4 | K12: =IF(GESTEP(I19,2027),2027,"IGUAL O MAYOR 2027") -> 2027 | L12: 38 | M12: 6 | N12: 2031-12-04 | O12: 1993-06-04 | Q12: 25 | S12: =DATE(YEAR($E$20)-5,MONTH($E$20),DAY($E$20)) -> 2026-12-04 | T12: 30 | U12: =DATE(YEAR($E$33)-5,MONTH($E$33),DAY($E$33)) -> 2028-12-04 | V12: 30 | W12: =DATE(YEAR($E$42)-5,MONTH($E$42),DAY($E$42)) -> 2037-07-10
Q13: 26 | R13: 1 | S13: =DATE(YEAR($E$20)-5,MONTH($E$20),DAY($E$20)) -> 2026-12-04 | T13: 31 | U13: 2028-12-04 | V13: 31 | W13: 2037-07-10
I14: ANY | J14: MES | K14: DIA | Q14: 27 | R14: 2 | S14: =DATE(YEAR($E$20)-5,MONTH($E$20),DAY($E$20)) -> 2026-12-04 | T14: 32 | U14: 2028-12-04 | V14: 32 | W14: 2037-07-10
A15: DATA DE NAIXEMENT | E15: =Hoja1!$A$9 -> 1966-12-04 | I15: =YEAR($E$15) -> 1966 | J15: =MONTH($E$15) -> 12 | K15: =DAY($E$15) -> 4 | M15: 1966-12-04 | N15: 1964-07-04 | O15: 1963-08-28 | Q15: 28 | R15: 3 | S15: 2026-12-04 | T15: 33 | U15: 2028-12-04 | V15: 33 | W15: 2037-07-10
A16: ANTIGUITAT GUB | E16: =Hoja1!$D$9 -> 2004-01-10 | I16: =YEAR($E$16) -> 2004 | J16: =MONTH($E$16) -> 1 | K16: =DAY($E$16) -> 10 | M16: 1989-01-10 | N16: 1992-10-13 | O16: 1986-12-12 | Q16: 29 | R16: 4 | S16: 2026-12-04 | T16: 34 | U16: 2028-12-04 | V16: 34 | W16: 2037-07-10
A17: TEMPS COTITZAT FORA DE GUB | E17: =DATE(YEAR($E$16)-$F$17,MONTH($E$16)-$G$17,DAY($E$16)-$H$17) -> 2004-01-10 | F17: =Hoja1!G9 -> 0 | G17: =Hoja1!H9 -> 0 | H17: =Hoja1!I9 -> 0 | I17: =YEAR($E$17) -> 2004 | J17: =MONTH($E$17) -> 1 | K17: =DAY($E$17) -> 10 | Q17: 30 | R17: 5 | S17: 2026-12-04 | T17: 35 | U17: 2028-12-04 | V17: 35 | W17: 2037-07-10
Q18: 31 | R18: 6 | S18: 2026-12-04 | T18: 36 | U18: 2028-12-04 | V18: 36 | W18: 2037-07-10
A19: DATA JUBILACIÓ ALS 65 | E19: =DATE(YEAR(E15)+65,MONTH(E15),DAY(E15)) -> 2031-12-04 | F19: =DATEDIF(E15,E19,"Y") -> 65 | G19: =DATEDIF(E15,E19,"YM") -> 0 | H19: =DATEDIF(E15,E19,"MD") -> 0 | I19: =YEAR(E19) -> 2031 | J19: =MONTH(E19) -> 12 | K19: =DAY(E19) -> 4 | Q19: 32 | R19: 7 | S19: 2026-12-04 | T19: 37 | U19: 2028-12-04 | V19: 37 | W19: 2037-07-10
A20: COTITZACIÓ GUB ALS 65 | E20: =DATE(YEAR(E15)+65,MONTH(E15),DAY(E15)) -> 2031-12-04 | F20: =DATEDIF(E16,E20,"Y") -> 27 | G20: =DATEDIF(E16,E20,"YM") -> 10 | H20: =DATEDIF(E16,E20,"MD") -> 24 | Q20: 33 | R20: 8 | S20: 2026-12-04 | T20: 38 | U20: 2028-12-04 | V20: 38 | W20: 2037-07-10
A21: COTITZACIÓ TOTAL ALS 65 | E21: =DATE(YEAR(E15)+65,MONTH(E15),DAY(E15)) -> 2031-12-04 | F21: =DATEDIF(E17,E21,"Y") -> 27 | G21: =DATEDIF(E17,E21,"YM") -> 10 | H21: =DATEDIF(E17,E21,"MD") -> 24 | Q21: 34 | R21: 9 | S21: 2026-12-04 | T21: 39 | U21: 2028-12-04 | V21: 39 | W21: 2037-07-10
A22: JUBILACIÓ ANTICIPADA FINS A 5 ANYS | E22: =LOOKUP(F20+(G20/12)+(H20/365),T2:T25,S2:S25) -> 2027-04-28 | F22: =DATEDIF(E15,E22,"Y") -> 60 | G22: =DATEDIF(E15,E22,"YM") -> 4 | H22: =DATEDIF(E15,E22,"MD") -> 24 | I22: =DATEDIF(E22,E19,"Y") -> 4 | J22: =DATEDIF(E22,E19,"YM") -> 7 | K22: =DATEDIF(E22,E19,"MD") -> 6 | Q22: 35 | R22: 10 | S22: 2026-12-04 | T22: 40 | U22: 2028-12-04 | V22: 40 | W22: 2037-07-10
A23: COTITZAT EFECTIU GUB | F23: =DATEDIF(E16,E22,"Y") -> 23 | G23: =DATEDIF(E16,E22,"YM") -> 3 | H23: =DATEDIF(E16,E22,"MD") -> 18 | L23: =F23+G23/12 -> 23.25 | N23: =Q25-L23 -> 13.25 | Q23: 36 | R23: 11 | S23: 2026-12-04 | T23: 41 | U23: 2028-12-04 | V23: 41 | W23: 2037-07-10
E24: =IF(N23<=0,IF(N23<=-1,S25,E26),S24) -> 2026-12-04 | F24: =DATEDIF(E15,E24,"Y") -> 60 | G24: =DATEDIF(E15,E24,"YM") -> 0 | H24: =DATEDIF(E15,E24,"MD") -> 0 | I24: =DATEDIF(E24,E19,"Y") -> 5 | J24: =DATEDIF(E24,E19,"YM") -> 0 | K24: =DATEDIF(E24,E19,"MD") -> 0 | Q24: 37 | R24: 12 | S24: =DATE(YEAR($S$12),MONTH($S$12),DAY($S$12)) -> 2026-12-04 | T24: 42 | U24: =DATE(YEAR($U$12),MONTH($U$12),DAY($U$12)) -> 2028-12-04 | V24: 42 | W24: =DATE(YEAR($W$12),MONTH($W$12),DAY($W$12)) -> 2037-07-10
F25: =DATEDIF(E16,E24,"Y") -> 22 | G25: =DATEDIF(E16,E24,"YM") -> 10 | H25: =DATEDIF(E16,E24,"MD") -> 24 | Q25: =IF(OR(YEAR(S25)<2018,YEAR(S25)=2018,YEAR(S25)=2019),"35,5",IF(OR(YEAR(S25)=2020,YEAR(S25)=2021,YEAR(S25)=2022),"36",IF(OR(YEAR(S25)=2023,YEAR(S25)=2024,YEAR(S25)=2025,YEAR(S25)=2026),"36,5","37"))) -> 36,5 | R25: 12 | S25: =DATE(YEAR($S$12)-1,MONTH($S$12),DAY($S$12)) -> 2025-12-04 | T25: 43 | U25: =DATE(YEAR($U$12)-1,MONTH($U$12),DAY($U$12)) -> 2027-12-04 | V25: 42 | W25: =DATE(YEAR($W$12)-1,MONTH($W$12),DAY($W$12)) -> 2036-07-10
E26: =DATE(YEAR(E16)+F26,MONTH(E16)+G26,DAY(E16)) -> 2040-07-10 | F26: =INT(Q25) -> 36 | G26: =12*(Q25-INT(Q25)) -> 6 | H26: 0 | I26: =F26+G26/12 -> 36.5
A27: ANTIGUITAT MINIMA PELS 65 DES DEL | E27: =LOOKUP($I$19,$K$2:$K$12,$O$2:$O$12) -> 1993-06-04 | I27: =LOOKUP($I$19,$K$2:$K$12,$L$2:$L$12) -> 38 | J27: =LOOKUP($I$19,$K$2:$K$12,$M$2:$M$12) -> 6 | K27: 0
I28: =IFERROR(DATEDIF(E27,E17,"Y"),0) -> 10 | J28: =IFERROR(DATEDIF(E27,E17,"YM"),0) -> 7 | K28: =IFERROR(DATEDIF(E27,E17,"MD"),0) -> 6
A29: FALTA PER COTITZAR | I29: =IF($I$28<=0,0,$I$28) -> 10 | J29: =IF(AND($I$28<=0,$J$28<=0),0,$J$28) -> 7 | K29: =IF(AND($I$28<=0,$J$28<=0,$K$28<=0),0,$K$28) -> 6
A31: DATA JUBILACIÓ, TEMPS COTITZAT, EDAT | E31: =DATE(YEAR($E$19)+$I$29,MONTH($E$19)+$J$29,DAY($E$19)+$K$29) -> 2042-07-10 | F31: =DATEDIF(E17,E31,"Y") -> 38 | G31: =DATEDIF(E17,E31,"YM") -> 6 | H31: =DATEDIF(E17,E31,"MD") -> 0 | I31: =DATEDIF(E15,E31,"Y") -> 75 | J31: =DATEDIF(E15,E31,"YM") -> 7 | K31: =DATEDIF(E15,E31,"MD") -> 6
A33: DATA JUBILACIÓ, TEMPS COTITZAT, EDAT | E33: =DATE(YEAR($E$15)+I33,MONTH($E$15)+J33,DAY($E$15)) -> 2033-12-04 | F33: =DATEDIF(E17,E33,"Y") -> 29 | G33: =DATEDIF(E17,E33,"YM") -> 10 | H33: =DATEDIF(E17,E33,"MD") -> 24 | I33: =LOOKUP(YEAR(E31),C2:C12,A2:A12) -> 67 | J33: =LOOKUP(YEAR(E31),C2:C12,B2:B12) -> 0 | K33: 0
A34: DATA JUBILACIÓ,COTITZAT GUB ALS | E34: =$E$33 -> 2033-12-04 | F34: =DATEDIF(E16,E33,"Y") -> 29 | G34: =DATEDIF(E16,E33,"YM") -> 10 | H34: =DATEDIF(E16,E33,"MD") -> 24
A35: DATA JUBILACIÓ, COTITZAT TOTAL ALS , MINIM | E35: =$E$33 -> 2033-12-04 | F35: =DATEDIF(E17,E33,"Y") -> 29 | G35: =DATEDIF(E17,E33,"YM") -> 10 | H35: =DATEDIF(E17,E33,"MD") -> 24 | I35: =LOOKUP(YEAR(E33),K2:K12,L2:L12) -> 38 | J35: =LOOKUP(YEAR(E33),K2:K12,M2:M12) -> 6 | K35: 0
A36: JUBILACIÓ ANTICIPADA | E36: =LOOKUP(F34+(G34/12)+(H34/365),T2:T25,U2:U25) -> 2029-02-14 | F36: =DATEDIF(E15,E36,"Y") -> 62 | G36: =DATEDIF(E15,E36,"YM") -> 2 | H36: =DATEDIF(E15,E36,"MD") -> 10 | I36: =DATEDIF(E36,E33,"Y") -> 4 | J36: =DATEDIF(E36,E33,"YM") -> 9 | K36: =DATEDIF(E36,E33,"MD") -> 20
A37: COTITZAT EFECTIU GUB | F37: =DATEDIF(E16,E36,"Y") -> 25 | G37: =DATEDIF(E16,E36,"YM") -> 1 | H37: =DATEDIF(E16,E36,"MD") -> 4
I38: =IFERROR(DATEDIF(E17,E33,"Y"),0) -> 29 | J38: =IFERROR(DATEDIF(E17,E33,"YM"),0) -> 10 | K38: =IFERROR(DATEDIF(E17,E33,"MD"),0) -> 24
I39: =IFERROR(DATEDIF(I38,I27,"Y"),0) -> 0 | J39: =IFERROR(DATEDIF(I38,I27,"YM"),0) -> 0 | K39: =IFERROR(DATEDIF(I38,I27,"MD"),0) -> 9
A40: FALTA PER COTITZAR | I40: =IF($I$39<=0,0,$I$39) -> 0 | J40: =IF(AND($I$39<=0,$J$39<=0),0,$J$39) -> 0 | K40: =IF(AND($I$39<=0,$J$39<=0,$K$39<=0),0,$K$39) -> 9
A42: DATA JUBILACIÓ 100%, TEMPS COTITZAT, EDAT | E42: =IF(DATE(YEAR($E$17)+F42,MONTH($E$17)+G42,DAY($E$17))<E19,E19,DATE(YEAR($E$17)+F42,MONTH($E$17)+G42,DAY($E$17))) -> 2042-07-10 | F42: =LOOKUP(YEAR($E$31),$K$2:$K$12,$L$2:$L$12) -> 38 | G42: =LOOKUP(YEAR($E$31),$K$2:$K$12,$M$2:$M$12) -> 6 | H42: 0 | I42: =DATEDIF(E15,E42,"Y") -> 75 | J42: =DATEDIF(E15,E42,"YM") -> 7 | K42: =DATEDIF(E15,E42,"MD") -> 6
A43: COTITZACIÓ TOTAL | F43: =DATEDIF(E17,E42,"Y") -> 38 | G43: =DATEDIF(E17,E42,"YM") -> 6 | H43: =DATEDIF(E17,E42,"MD") -> 0
A44: COTITZACIÓ GUB | F44: =DATEDIF(E16,E42,"Y") -> 38 | G44: =DATEDIF(E16,E42,"YM") -> 6 | H44: =DATEDIF(E16,E42,"MD") -> 0
A45: JUBILACIÓ ANTICIPADA 100% | E45: =LOOKUP(F44,T2:T25,W2:W25) -> 2037-07-10 | I45: =DATEDIF(E15,E45,"Y") -> 70 | J45: =DATEDIF(E15,E45,"YM") -> 7 | K45: =DATEDIF(E15,E45,"MD") -> 6
A46: COTITZAT EFECTIU GUB | F46: =DATEDIF(E16,E45,"Y") -> 33 | G46: =DATEDIF(E16,E45,"YM") -> 6 | H46: =DATEDIF(E16,E45,"MD") -> 0

Sheet Hoja3 (hidden)
B1: any naixement | C1: any antiguitat total | D1: temps cotitzat fora de GUB | G1: jubilació | H1: edat | K1: cotitzat total | N1: falta cotizar | S1: EDAT DE JUBILACIÓ GENERAL | U1: ANY | V1: ANY | W1: AMB AQUESTS TEMPS COTITZAT
A2: 65 ANYS | B2: =Hoja1!$A$9 -> 1966-12-04 | C2: =DATE(YEAR($B$7)-$D$2,MONTH($B$7)-$E$2,DAY($B$7)-$F$2) -> 2004-01-10 | D2: =Hoja1!G9 -> 0 | E2: =Hoja1!H9 -> 0 | F2: =Hoja1!I9 -> 0 | G2: =DATE(YEAR($B$2)+65,MONTH($B$2),DAY($B$2)) -> 2031-12-04 | H2: =DATEDIF($B$2,$G$2,"Y") -> 65 | I2: =DATEDIF($B$2,$G$2,"YM") -> 0 | J2: =DATEDIF($B$2,$G$2,"MD") -> 0 | K2: =DATEDIF($C$2,$G$2,"Y") -> 27 | L2: =DATEDIF($C$2,$G$2,"YM") -> 10 | M2: =DATEDIF($C$2,$G$2,"MD") -> 24 | N2: =IFERROR(DATEDIF(G2,G5,"Y"),0) -> 10 | O2: =IFERROR(DATEDIF(G2,G5,"YM"),0) -> 7 | P2: =IFERROR(DATEDIF(G2,G5,"MD"),0) -> 6 | R2: =DATE(YEAR($B$2)+S2,MONTH($B$2)+T2,DAY($B$2)) -> 2032-05-04 | S2: 65 | T2: 5 | U2: 2017 | V2: 2017 | W2: 36 | X2: 3 | Y2: =DATE(YEAR($G$2)-W2,MONTH($G$2)-X2,DAY($G$2)) -> 1995-09-04
A3: tope jubil | G3: =DATE(YEAR(B2)+LOOKUP(YEAR(G2),U2:U12,S2:S12), MONTH(B2)+LOOKUP(YEAR(G2),U2:U12,T2:T12),DAY(G2)) -> 2033-12-04 | H3: =DATEDIF($B$2,$G$3,"Y") -> 67 | I3: =DATEDIF($B$2,$G$3,"YM") -> 0 | J3: =DATEDIF($B$2,$G$3,"MD") -> 0 | K3: =DATEDIF($C$2,$G$3,"Y") -> 29 | L3: =DATEDIF($C$2,$G$3,"YM") -> 10 | M3: =DATEDIF($C$2,$G$3,"MD") -> 24 | N3: =IFERROR(DATEDIF(G3,G6,"Y"),0) -> 8 | O3: =IFERROR(DATEDIF(G3,G6,"YM"),0) -> 7 | P3: =IFERROR(DATEDIF(G3,G6,"MD"),0) -> 6 | R3: =DATE(YEAR($B$2)+S3,MONTH($B$2)+T3,DAY($B$2)) -> 2032-06-04 | S3: 65 | T3: 6 | U3: 2018 | V3: 2018 | W3: 36 | X3: 6 | Y3: =DATE(YEAR($G$2)-W3,MONTH($G$2)-X3,DAY($G$2)) -> 1995-06-04
A4: tope edat | C4: =LOOKUP(YEAR(G4),U2:U12,Y2:Y12) -> 1993-06-04 | G4: =LOOKUP(YEAR(G3),V2:V12,R2:R12) -> 2033-12-04 | H4: =DATEDIF($B$2,$G$4,"Y") -> 67 | I4: =DATEDIF($B$2,$G$4,"YM") -> 0 | J4: =DATEDIF($B$2,$G$4,"MD") -> 0 | K4: =DATEDIF($C$2,$G$4,"Y") -> 29 | L4: =DATEDIF($C$2,$G$4,"YM") -> 10 | M4: =DATEDIF($C$2,$G$4,"MD") -> 24 | N4: =IFERROR(DATEDIF(G4,G6,"Y"),0) -> 8 | O4: =IFERROR(DATEDIF(G4,G6,"YM"),0) -> 7 | P4: =IFERROR(DATEDIF(G4,G6,"MD"),0) -> 6 | R4: 2032-08-04 | S4: 65 | T4: 8 | U4: 2019 | V4: 2019 | W4: 36 | X4: 9 | Y4: 1995-03-04
A5: cotització sencera ALS 65 | C5: =LOOKUP(YEAR(G2),U2:U12,Y2:Y12) -> 1993-06-04 | D5: =LOOKUP(YEAR(G2),U2:U12,W2:W12) -> 38 | E5: =LOOKUP(YEAR(G2),U2:U12,X2:X12) -> 6 | F5: 0 | G5: =DATE(YEAR($C$2)+K5,MONTH($C$2)+L5,DAY($C$2)+M5) -> 2042-07-10 | H5: =DATEDIF($B$2,$G$5,"Y") -> 75 | I5: =DATEDIF($B$2,$G$5,"YM") -> 7 | J5: =DATEDIF($B$2,$G$5,"MD") -> 6 | K5: =DATEDIF($C$5,$G$2,"Y") -> 38 | L5: =DATEDIF($C$5,$G$2,"YM") -> 6 | M5: =DATEDIF($C$5,$G$2,"MD") -> 0 | N5: 0 | O5: 0 | P5: 0 | R5: 2032-10-04 | S5: 65 | T5: 10 | U5: 2020 | V5: 2020 | W5: 37 | X5: 0 | Y5: 1994-12-04
A6: cotització sencera AL TOPE DE EDAT | D6: =LOOKUP(YEAR(G4),U2:U12,W2:W12) -> 38 | E6: =LOOKUP(YEAR(G4),U2:U12,X2:X12) -> 6 | F6: 0 | G6: =IF(GESTEP(DATE(YEAR($C$2)+D6,MONTH($C$2)+E6,DAY($C$2)),42736),DATE(YEAR($C$2)+D6,MONTH($C$2)+E6,DAY($C$2)),42736) -> 2042-07-10 | H6: =DATEDIF($B$2,$G$6,"Y") -> 75 | I6: =DATEDIF($B$2,$G$6,"YM") -> 7 | J6: =DATEDIF($B$2,$G$6,"MD") -> 6 | N6: =IF(N2<=0,0,N2) -> 10 | O6: =IF(AND(N2<=0,O2<=0),0,O2) -> 7 | P6: =IF(AND(N2<=0,O2<=0,P2<=0),0,P2) -> 6 | R6: 2032-12-04 | S6: 66 | T6: 0 | U6: 2021 | V6: 2021 | W6: 37 | X6: 3 | Y6: 1994-09-04
A7: any antiguitat gub | B7: =Hoja1!$D$9 -> 2004-01-10 | D7: =LOOKUP(YEAR(G6),U2:U12,W2:W12) -> 38 | E7: =LOOKUP(YEAR(G6),U2:U12,X2:X12) -> 6 | F7: 0 | G7: =IF(GESTEP(DATE(YEAR($C$2)+D7,MONTH($C$2)+E7,DAY($C$2)),G2),DATE(YEAR($C$2)+D7,MONTH($C$2)+E7,DAY($C$2)),G2) -> 2042-07-10 | H7: =DATEDIF($B$2,$G$7,"Y") -> 75 | I7: =DATEDIF($B$2,$G$7,"YM") -> 7 | J7: =DATEDIF($B$2,$G$7,"MD") -> 6 | K7: =DATEDIF($C$2,$G$7,"Y") -> 38 | L7: =DATEDIF($C$2,$G$7,"YM") -> 6 | M7: =DATEDIF($C$2,$G$7,"MD") -> 0 | N7: =IF(N3<=0,0,N3) -> 8 | O7: =IF(AND(N3<=0,O3<=0),0,O3) -> 7 | P7: =IF(AND(N3<=0,O3<=0,P3<=0),0,P3) -> 6 | R7: 2033-02-04 | S7: 66 | T7: 2 | U7: 2022 | V7: 2022 | W7: 37 | X7: 6 | Y7: 1994-06-04
N8: 8 | O8: 7 | P8: 6 | R8: 2033-04-04 | S8: 66 | T8: 4 | U8: 2023 | V8: 2023 | W8: 37 | X8: 9 | Y8: 1994-03-04
D9: =LOOKUP(YEAR(G3),U2:U12,W2:W12) -> 38 | E9: =LOOKUP(YEAR(G3),U2:U12,X2:X12) -> 6 | F9: 0 | O9: =K18+L18/12 -> 23.25 | P9: =N22-O9 -> 13.25 | R9: 2033-06-04 | S9: 66 | T9: 6 | U9: 2024 | V9: 2024 | W9: 38 | X9: 0 | Y9: 1993-12-04
A10: =DATE(YEAR($C$2)+D7,MONTH($C$2)+E7,DAY($C$2)) -> 2042-07-10 | R10: 2033-08-04 | S10: 66 | T10: 8 | U10: 2025 | V10: 2025 | W10: 38 | X10: 3 | Y10: 1993-09-04
A11: =IF(GESTEP(DATE(YEAR($C$2)+D7,MONTH($C$2)+E7,DAY($C$2)),G2),G2,DATE(YEAR($C$2)+D7,MONTH($C$2)+E7,DAY($C$2))) -> 2031-12-04 | D11: =LOOKUP(YEAR(G11),$U$2:$U$12,$W$2:$W$12) -> 38 | E11: =LOOKUP(YEAR(G11),$U$2:$U$12,$X$2:$X$12) -> 6 | F11: 0 | G11: =A23 -> 2036-12-04 | H11: =DATEDIF($B$2,$G$11,"Y") -> 70 | I11: =DATEDIF($B$2,$G$11,"YM") -> 0 | J11: =DATEDIF($B$2,$G$11,"MD") -> 0 | K11: =DATEDIF($C$2,$G$11,"Y") -> 32 | L11: =DATEDIF($C$2,$G$11,"YM") -> 10 | M11: =DATEDIF($C$2,$G$11,"MD") -> 24 | N11: =IFERROR(DATEDIF(G11,G5,"Y"),0) -> 5 | O11: =IFERROR(DATEDIF(G11,G5,"YM"),0) -> 7 | P11: =IFERROR(DATEDIF(G11,G5,"MD"),0) -> 6 | R11: 2033-10-04 | S11: 66 | T11: 10 | U11: 2026 | V11: 2026 | W11: 38 | X11: 3 | Y11: 1993-09-04
A12: =IF(GESTEP(DATE(YEAR($C$2)+D6,MONTH($C$2)+E6,DAY($C$2)),1/1/2017),DATE(YEAR($C$2)+D6,MONTH($C$2)+E6,DAY($C$2)),1/1/2017) -> 2042-07-10 | D12: =LOOKUP(YEAR(G12),$U$2:$U$12,$W$2:$W$12) -> 38 | E12: =LOOKUP(YEAR(G12),$U$2:$U$12,$X$2:$X$12) -> 6 | F12: 0 | G12: =A24 -> 2038-12-04 | H12: =DATEDIF($B$2,$G$12,"Y") -> 72 | I12: =DATEDIF($B$2,$G$12,"YM") -> 0 | J12: =DATEDIF($B$2,$G$12,"MD") -> 0 | K12: =DATEDIF($C$2,$G$12,"Y") -> 34 | L12: =DATEDIF($C$2,$G$12,"YM") -> 10 | M12: =DATEDIF($C$2,$G$12,"MD") -> 24 | N12: =IFERROR(DATEDIF(G12,G5,"Y"),0) -> 3 | O12: =IFERROR(DATEDIF(G12,G5,"YM"),0) -> 7 | P12: =IFERROR(DATEDIF(G12,G5,"MD"),0) -> 6 | R12: 2033-12-04 | S12: 67 | T12: 0 | U12: 2027 | V12: 2027 | W12: 38 | X12: 6 | Y12: 1993-06-04
A13: =DATE(YEAR($C$2)+D6,MONTH($C$2)+E6,DAY($C$2)) -> 2042-07-10 | N13: =IF(N11<=0,0,N11) -> 5 | O13: =IF(AND(N11<=0,O11<=0),0,O11) -> 7 | P13: =IF(AND(N11<=0,O11<=0,P11<=0),0,P11) -> 6
A14: 2017-01-01 | N14: =IF(N12<=0,0,N12) -> 3 | O14: =IF(AND(N12<=0,O12<=0),0,O12) -> 7 | P14: =IF(AND(N12<=0,O12<=0,P12<=0),0,P12) -> 6
S16: ANTIGUITAT GUB | T16: JUBILACIÓ 65 | V16: JUBILACIÓ 67 | X16: JUBILACIÓ 100%
B17: edat sense reducció | C17: jubilacio anticipada | E17: edat | H17: cotitzat GUB sense reducció | K17: cotitzat GUB amb reducció | R17: =U17-S17 -> 3 | S17: 15 | T17: =DATE(YEAR($G$2)-3,MONTH($G$2),DAY($G$2)) -> 2028-12-04 | U17: 18 | V17: =DATE(YEAR($G$4)-3,MONTH($G$4),DAY($G$4)) -> 2030-12-04 | W17: 18 | X17: =DATE(YEAR($G$7)-3,MONTH($G$7),DAY($G$7)) -> 2039-07-10
A18: 65 ANYS | B18: =H2&" anys, "&I2&" mesos, "&J2&" dies" -> 65 anys, 0 mesos, 0 dies | C18: =LOOKUP(H18+(I18/12)+(J18/365),U17:U40,T17:T40) -> 2027-04-28 | E18: =DATEDIF($B$2,$C$18,"Y") -> 60 | F18: =DATEDIF($B$2,$C$18,"YM") -> 4 | G18: =DATEDIF($B$2,$C$18,"MD") -> 24 | H18: =DATEDIF($B$7,$G$2,"Y") -> 27 | I18: =DATEDIF($B$7,$G$2,"YM") -> 10 | J18: =DATEDIF($B$7,$G$2,"MD") -> 24 | K18: =DATEDIF($B$7,$C$18,"Y") -> 23 | L18: =DATEDIF($B$7,$C$18,"YM") -> 3 | M18: =DATEDIF($B$7,$C$18,"MD") -> 18 | N18: =DATEDIF(C18,G2,"Y") -> 4 | O18: =DATEDIF(C18,G2,"YM") -> 7 | P18: =DATEDIF(C18,G2,"MD") -> 6 | R18: =U18-S18 -> 3.2 | S18: 16 | T18: =DATE(YEAR($G$2),MONTH($G$2),DAY($G$2)-73.05*S18) -> 2028-09-21 | U18: 19.2 | V18: =DATE(YEAR($G$4),MONTH($G$4),DAY($G$4)-73.05*S18) -> 2030-09-22 | W18: 19.2 | X18: =DATE(YEAR($G$7),MONTH($G$7),DAY($G$7)-73.05*S18) -> 2039-04-28
A19: tope edat | B19: =H4&" anys, "&I4&" mesos, "&J4&" dies" -> 67 anys, 0 mesos, 0 dies | C19: =LOOKUP(H19+(I19/12)+(J19/365),U17:U40,V17:V40) -> 2029-02-14 | E19: =DATEDIF($B$2,$C$19,"Y") -> 62 | F19: =DATEDIF($B$2,$C$19,"YM") -> 2 | G19: =DATEDIF($B$2,$C$19,"MD") -> 10 | H19: =DATEDIF($B$7,$G$4,"Y") -> 29 | I19: =DATEDIF($B$7,$G$4,"YM") -> 10 | J19: =DATEDIF($B$7,$G$4,"MD") -> 24 | K19: =DATEDIF($B$7,$C$19,"Y") -> 25 | L19: =DATEDIF($B$7,$C$19,"YM") -> 1 | M19: =DATEDIF($B$7,$C$19,"MD") -> 4 | N19: =DATEDIF(C19,G4,"Y") -> 4 | O19: =DATEDIF(C19,G4,"YM") -> 9 | P19: =DATEDIF(C19,G4,"MD") -> 20 | R19: 3.4 | S19: 17 | T19: =DATE(YEAR($G$2),MONTH($G$2),DAY($G$2)-73.05*S19) -> 2028-07-10 | U19: 20.4 | V19: =DATE(YEAR($G$4),MONTH($G$4),DAY($G$4)-73.05*S19) -> 2030-07-11 | W19: 20.4 | X19: =DATE(YEAR($G$7),MONTH($G$7),DAY($G$7)-73.05*S19) -> 2039-02-14
A20: cotització sencera | B20: =H7&" anys, "&I7&" mesos, "&J7&" dies" -> 75 anys, 7 mesos, 6 dies | C20: =IF(GESTEP(LOOKUP(H18+(I18/12)+(J18/365),U17:U40,T17:T40),LOOKUP(H20+(I20/12)+(J20/365),W17:W40,X17:X40)),LOOKUP(H18+(I18/12)+(J18/365),U17:U40,T17:T40),LOOKUP(H20+(I20/12)+(J20/365),W17:W40,X17:X40)) -> 2037-07-10 | E20: =DATEDIF($B$2,$C$20,"Y") -> 70 | F20: =DATEDIF($B$2,$C$20,"YM") -> 7 | G20: =DATEDIF($B$2,$C$20,"MD") -> 6 | H20: =DATEDIF($B$7,$G$7,"Y") -> 38 | I20: =DATEDIF($B$7,$G$7,"YM") -> 6 | J20: =DATEDIF($B$7,$G$7,"MD") -> 0 | K20: =DATEDIF($B$7,$C$20,"Y") -> 33 | L20: =DATEDIF($B$7,$C$20,"YM") -> 6 | M20: =DATEDIF($B$7,$C$20,"MD") -> 0 | N20: =DATEDIF(C20,G7,"Y") -> 5 | O20: =DATEDIF(C20,G7,"YM") -> 0 | P20: =DATEDIF(C20,G7,"MD") -> 0 | R20: 3.6 | S20: 18 | T20: =DATE(YEAR($G$2),MONTH($G$2),DAY($G$2)-73.05*S20) -> 2028-04-28 | U20: 21.6 | V20: =DATE(YEAR($G$4),MONTH($G$4),DAY($G$4)-73.05*S20) -> 2030-04-29 | W20: 21.6 | X20: 2038-12-03
B21: 59 o 60 | C21: =IF(P9<=0,IF(P9<=-1,T38,C22),C18) -> 2027-04-28 | D21: =IF(P9<=0,IF(P9<=-1,"T38","C16"),"C18") -> C18 | E21: =DATEDIF($B$2,$C$21,"Y") -> 60 | F21: =DATEDIF($B$2,$C$21,"YM") -> 4 | G21: =DATEDIF($B$2,$C$21,"MD") -> 24 | K21: =DATEDIF($B$7,$C$21,"Y") -> 23 | L21: =DATEDIF($B$7,$C$21,"YM") -> 3 | M21: =DATEDIF($B$7,$C$21,"MD") -> 18 | N21: =DATEDIF(C21,G2,"Y") -> 4 | O21: =DATEDIF(C21,G2,"YM") -> 7 | P21: =DATEDIF(C21,G2,"MD") -> 6 | R21: 3.8 | S21: 19 | T21: =DATE(YEAR($G$2),MONTH($G$2),DAY($G$2)-73.05*S21) -> 2028-02-15 | U21: 22.8 | V21: =DATE(YEAR($G$4),MONTH($G$4),DAY($G$4)-73.05*S21) -> 2030-02-15 | W21: 22.8 | X21: 2038-09-21
B22: entre 59 i 60 | C22: =DATE(YEAR($B$7)+K22,MONTH($B$7)+L22,DAY($B$7)) -> 2040-07-10 | E22: =DATEDIF($B$2,$C$22,"Y") -> 73 | F22: =DATEDIF($B$2,$C$22,"YM") -> 7 | G22: =DATEDIF($B$2,$C$22,"MD") -> 6 | K22: =INT(S38) -> 36 | L22: =12*(S38-INT(S38)) -> 6 | M22: 0 | N22: =K22+L22/12 -> 36.5 | R22: 4 | S22: 20 | T22: =DATE(YEAR($G$2)-4,MONTH($G$2),DAY($G$2)) -> 2027-12-04 | U22: 24 | V22: =DATE(YEAR($G$4)-4,MONTH($G$4),DAY($G$4)) -> 2029-12-04 | W22: 24 | X22: =DATE(YEAR($G$7)-4,MONTH($G$7),DAY($G$7)) -> 2038-07-10
A23: =DATE(YEAR(C23)+H23-K23,MONTH(C23)+I23-L23,DAY(C23)+J23-M23) -> 2036-12-04 | C23: =$G$2 -> 2031-12-04 | E23: =H2 -> 65 | F23: 0 | G23: 0 | H23: =INT(((K23+L23/12+M23/365.25)+(LOOKUP(INT(K23+L23/12+M23/365.25),$S$17:$S$40,$R$17:$R$40)))) -> 32 | I23: =INT((((K23+L23/12+M23/365.25)+(LOOKUP(INT(K23+L23/12+M23/365.25),$S$17:$S$40,$R$17:$R$40)))-H23)*12) -> 10 | J23: =INT((((((K23+L23/12+M23/365.25)+(LOOKUP(INT(K23+L23/12+M23/365.25),$S$17:$S$40,$R$17:$R$40)))-H23)*12)-I23)*30.44) -> 24 | K23: =DATEDIF($B$7,C23,"Y") -> 27 | L23: =DATEDIF($B$7,C23,"YM") -> 10 | M23: =DATEDIF($B$7,C23,"MD") -> 24 | N23: =DATEDIF(C23,A23,"Y") -> 5 | O23: =DATEDIF(C23,A23,"YM") -> 0 | P23: =DATEDIF(C23,A23,"MD") -> 0 | R23: 4.2 | S23: 21 | T23: =DATE(YEAR($G$2),MONTH($G$2),DAY($G$2)-73.05*S23) -> 2027-09-21 | U23: 25.2 | V23: =DATE(YEAR($G$4),MONTH($G$4),DAY($G$4)-73.05*S23) -> 2029-09-21 | W23: 25.2 | X23: =DATE(YEAR($G$7),MONTH($G$7),DAY($G$7)-73.05*S23) -> 2038-04-27
A24: =DATE(YEAR(C24)+H24-K24,MONTH(C24)+I24-L24,DAY(C24)+J24-M24) -> 2038-12-04 | C24: =$G$3 -> 2033-12-04 | E24: 67 | F24: 0 | G24: 0 | H24: =INT(((K24+L24/12+M24/365.25)+(LOOKUP(INT(K24+L24/12+M24/365.25),$S$17:$S$40,$R$17:$R$40)))) -> 34 | I24: =INT((((K24+L24/12+M24/365.25)+(LOOKUP(INT(K24+L24/12+M24/365.25),$S$17:$S$40,$R$17:$R$40)))-H24)*12) -> 10 | J24: =INT((((((K24+L24/12+M24/365.25)+(LOOKUP(INT(K24+L24/12+M24/365.25),$S$17:$S$40,$R$17:$R$40)))-H24)*12)-I24)*30.44) -> 24 | K24: =DATEDIF($B$7,C24,"Y") -> 29 | L24: =DATEDIF($B$7,C24,"YM") -> 10 | M24: =DATEDIF($B$7,C24,"MD") -> 24 | N24: =DATEDIF(C24,A24,"Y") -> 5 | O24: =DATEDIF(C24,A24,"YM") -> 0 | P24: =DATEDIF(C24,A24,"MD") -> 0 | R24: 4.4 | S24: 22 | T24: =DATE(YEAR($G$2),MONTH($G$2),DAY($G$2)-73.05*S24) -> 2027-07-10 | U24: 26.4 | V24: =DATE(YEAR($G$4),MONTH($G$4),DAY($G$4)-73.05*S24) -> 2029-07-10 | W24: 26.4 | X24: =DATE(YEAR($G$7),MONTH($G$7),DAY($G$7)-73.05*S24) -> 2038-02-13
H25: =(K21+(L21/12)+(M21/365))+(((K21+(L21/12)+(M21/365))/100*20)) -> 27.95917808 | I25: =H25*365.25 -> 10212.08979 | K25: =K21+(L21/12)+(M21/365) -> 23.29931507 | L25: =K25*365.25 -> 8510.074829 | R25: 4.6 | S25: 23 | T25: =DATE(YEAR($G$2),MONTH($G$2),DAY($G$2)-73.05*S25) -> 2027-04-28 | U25: 27.6 | V25: =DATE(YEAR($G$4),MONTH($G$4),DAY($G$4)-73.05*S25) -> 2029-04-28 | W25: 27.6 | X25: 2037-12-02
C26: =LOOKUP(H18+(I18/12)+(J18/365),U17:U40,T17:T40) -> 2027-04-28 | D26: =DATE(YEAR(E26)+N26,MONTH(E26)+O26,DAY(E26)+P26) -> 2031-12-04 | E26: =LOOKUP(H25,U17:U40,T17:T40) -> 2027-04-28 | H26: =INT(I25/365.25) -> 27 | I26: =INT((I25-(H26*365.25))/30.4) -> 11 | J26: =I25-(H26*365.25)-(I26*30.4) -> 15.93979452 | K26: =INT(L25/365.25) -> 23 | L26: =INT((L25-(K26*365.25))/30.4) -> 3 | M26: =L25-(K26*365.25)-L26*30.4 -> 18.12482877 | N26: =DATEDIF(E26,G2,"Y") -> 4 | O26: =DATEDIF(E26,G2,"YM") -> 7 | P26: =DATEDIF(E26,G2,"MD") -> 6 | R26: 4.4 | S26: 24 | T26: =DATE(YEAR($G$2),MONTH($G$2),DAY($G$2)-73.05*S26) -> 2027-02-14 | U26: 28.4 | V26: =DATE(YEAR($G$4),MONTH($G$4),DAY($G$4)-73.05*S26) -> 2029-02-14 | W26: 28.4 | X26: 2037-09-20
C27: =LOOKUP(H20+(I20/12)+(J20/365),W17:W40,X17:X40) -> 2037-07-10 | R27: 5 | S27: 25 | T27: =DATE(YEAR($G$2)-5,MONTH($G$2),DAY($G$2)) -> 2026-12-04 | U27: 30 | V27: =DATE(YEAR($G$4)-5,MONTH($G$4),DAY($G$4)) -> 2028-12-04 | W27: 30 | X27: =DATE(YEAR($G$7)-5,MONTH($G$7),DAY($G$7)) -> 2037-07-10
R28: 5 | S28: 26 | T28: =DATE(YEAR($G$2)-5,MONTH($G$2),DAY($G$2)) -> 2026-12-04 | U28: 31 | V28: =DATE(YEAR($G$4)-5,MONTH($G$4),DAY($G$4)) -> 2028-12-04 | W28: 31 | X28: =DATE(YEAR($G$7)-5,MONTH($G$7),DAY($G$7)) -> 2037-07-10
R29: 5 | S29: 27 | T29: 2026-12-04 | U29: 32 | V29: 2028-12-04 | W29: 32 | X29: 2037-07-10
R30: 5 | S30: 28 | T30: 2026-12-04 | U30: 33 | V30: 2028-12-04 | W30: 33 | X30: 2037-07-10
A31: compleix cotització ordinaria per 65 | C31: =AND(N6=0,O6=0,P6=0) -> FALSE | R31: 5 | S31: 29 | T31: 2026-12-04 | U31: 34 | V31: 2028-12-04 | W31: 34 | X31: 2037-07-10
C32: DATA | D32: COTITZACIÓ GUB | G32: EDAT | J32: FALTAN | R32: 5 | S32: 30 | T32: 2026-12-04 | U32: 35 | V32: 2028-12-04 | W32: 35 | X32: 2037-07-10
A33: jubilacion ordinaria | C33: =G2 -> 2031-12-04 | D33: =H18 -> 27 | E33: =I18 -> 10 | F33: =J18 -> 24 | G33: =H2 -> 65 | H33: 0 | I33: 0 | J33: =N6 -> 10 | K33: =O6 -> 7 | L33: =P6 -> 6 | R33: 5 | S33: 31 | T33: 2026-12-04 | U33: 36 | V33: 2028-12-04 | W33: 36 | X33: 2037-07-10
A34: jubilacion anticipada GUB | C34: =$C$21 -> 2027-04-28 | D34: =K21 -> 23 | E34: =L21 -> 3 | F34: =M21 -> 18 | G34: =E21 -> 60 | H34: =F21 -> 4 | I34: =G21 -> 24 | R34: 5 | S34: 32 | T34: 2026-12-04 | U34: 37 | V34: 2028-12-04 | W34: 37 | X34: 2037-07-10
R35: 5 | S35: 33 | T35: 2026-12-04 | U35: 38 | V35: 2028-12-04 | W35: 38 | X35: 2037-07-10
A36: si falso 3 opcions: | R36: 5 | S36: 34 | T36: 2026-12-04 | U36: 39 | V36: 2028-12-04 | W36: 39 | X36: 2037-07-10
R37: 5 | S37: 35 | T37: 2026-12-04 | U37: 40 | V37: 2028-12-04 | W37: 40 | X37: 2037-07-10
A38: 1 - cotització sencera | R38: 6 | S38: =IF(OR(YEAR(T38)<2018,YEAR(T38)=2018,YEAR(T38)=2019),"35,5",IF(OR(YEAR(T38)=2020,YEAR(T38)=2021,YEAR(T38)=2022),"36",IF(OR(YEAR(T38)=2023,YEAR(T38)=2024,YEAR(T38)=2025,YEAR(T38)=2026),"36,5","37"))) -> 36,5 | T38: =DATE(YEAR($T$27)-1,MONTH($T$27),DAY($T$27)) -> 2025-12-04 | U38: 43 | V38: =DATE(YEAR($V$27)-1,MONTH($V$27),DAY($V$27)) -> 2027-12-04 | W38: 42 | X38: =DATE(YEAR($X$27)-1,MONTH($X$27),DAY($X$27)) -> 2036-07-10
A39: jubilacion ordinaria | C39: =$G$7 -> 2042-07-10 | D39: =H20 -> 38 | E39: =I20 -> 6 | F39: =J20 -> 0 | G39: =H5 -> 75 | H39: =I5 -> 7 | I39: =J5 -> 6 | J39: =N5 -> 0 | K39: 0 | L39: 0 | R39: 5 | S39: 36 | T39: 2026-12-04 | U39: 41 | V39: 2028-12-04 | W39: 41 | X39: =DATE(YEAR($G$7)-5,MONTH($G$7),DAY($G$7)) -> 2037-07-10
A40: jubilacion anticipada GUB | C40: =$C$20 -> 2037-07-10 | D40: =K20 -> 33 | E40: =L20 -> 6 | F40: =M20 -> 0 | G40: =E20 -> 70 | H40: =F20 -> 7 | I40: =G20 -> 6 | J40: =N5 -> 0 | K40: 0 | L40: 0 | R40: 5 | S40: 37 | T40: =DATE(YEAR($T$27),MONTH($T$27),DAY($T$27)) -> 2026-12-04 | U40: 42 | V40: =DATE(YEAR($V$27),MONTH($V$27),DAY($V$27)) -> 2028-12-04 | W40: 42 | X40: =DATE(YEAR($X$27),MONTH($X$27),DAY($X$27)) -> 2037-07-10
A42: TREBALL FINS ELS 65 | C42: =$G$2 -> 2031-12-04 | D42: =H23 -> 32 | E42: =I23 -> 10 | F42: =J23 -> 24 | G42: =E23 -> 65 | H42: =F23 -> 0 | I42: =G23 -> 0 | J42: =IFERROR(DATEDIF(C43,C39,"Y"),0) -> 5 | K42: =IFERROR(DATEDIF(C43,C39,"YM"),0) -> 7 | L42: =IFERROR(DATEDIF(C43,C39,"MD"),0) -> 6
C43: =DATE(YEAR(C42)-D43+D42,MONTH(C42)-E43+E42,DAY(C42)-F43+F42) -> 2036-12-04 | D43: =K23 -> 27 | E43: =L23 -> 10 | F43: =M23 -> 24 | J43: =IF(J42<=0,0,J42) -> 5 | K43: =IF(AND(J42<=0,K42<=0),0,K42) -> 7 | L43: =IF(AND(J42<=0,K42<=0,L42<=0),0,L42) -> 6
A45: TREBALL FINS ELS 67 | C45: =$G$3 -> 2033-12-04 | D45: =H24 -> 34 | E45: =I24 -> 10 | F45: =J24 -> 24 | G45: =E24 -> 67 | H45: =F24 -> 0 | I45: =G24 -> 0 | J45: =IFERROR(DATEDIF(C46,C39,"Y"),0) -> 3 | K45: =IFERROR(DATEDIF(C46,C39,"YM"),0) -> 7 | L45: =IFERROR(DATEDIF(C46,C39,"MD"),0) -> 6
C46: =DATE(YEAR(C45)-D46+D45,MONTH(C45)-E46+E45,DAY(C45)-F46+F45) -> 2038-12-04 | D46: =K24 -> 29 | E46: =L24 -> 10 | F46: =M24 -> 24 | J46: =IF(J45<=0,0,J45) -> 3 | K46: =IF(AND(J45<=0,K45<=0),0,K45) -> 7 | L46: =IF(AND(J45<=0,K45<=0,L45<=0),0,L45) -> 6
